bitfinex/quotes_BTCUSD_20250901
["timestamp","ask_amount","ask_price","bid_price","bid_amount"]
[1756762005414,0.83911269,108360.0,108350.0,0.00731813]
[1756762005620,1.52765609,108360.0,108350.0,0.00427813]
[1756762005844,1.52765609,108360.0,108350.0,0.00225813]
[1756762005845,1.61957208,108360.0,108350.0,0.00225813]
[1756762006048,1.60050859,108360.0,108350.0,0.00731813]
[1756762006254,1.60250859,108360.0,108350.0,0.00731813]
[1756762007085,1.5085926,108360.0,108350.0,0.00731813]
[1756762007380,1.1653209,108360.0,108350.0,0.00731813]
[1756762009518,0.58026073,108360.0,108350.0,0.09923412]
[1756762009727,0.56058965,108360.0,108350.0,0.09923412]
[1756762010147,0.56058965,108360.0,108350.0,0.2838211]
[1756762010607,0.53284165,108360.0,108350.0,0.2838211]
[1756762011021,0.53084165,108360.0,108350.0,0.2828211]
[1756762011446,0.53284165,108360.0,108350.0,0.09923412]
[1756762011687,0.68948165,108360.0,108350.0,0.2828211]
[1756762011899,0.68748165,108360.0,108350.0,0.09723412]
[1756762012108,0.68948165,108360.0,108350.0,0.10023412]
[1756762012320,0.68948165,108360.0,108350.0,0.2848211]
[1756762013367,0.34620995,108360.0,108350.0,0.2848211]
[1756762013579,0.68948165,108360.0,108350.0,0.2848211]
[1756762017421,0.68948165,108360.0,108350.0,0.10023412]
[1756762017880,0.68948165,108360.0,108350.0,0.2848211]
[1756762018944,0.18656995,108360.0,108350.0,0.2848211]
[1756762019207,0.52984165,108360.0,108350.0,0.2848211]
[1756762019645,0.68940165,108360.0,108350.0,0.10023412]
[1756762019867,0.69140165,108360.0,108350.0,0.10023412]
[1756762020089,1.4398755,108360.0,108350.0,0.00325813]
[1756762020526,1.50443457,108360.0,108350.0,0.00325813]
[1756762020744,1.53425841,108360.0,108350.0,0.00325813]
[1756762020963,6.38430441,108360.0,108350.0,0.00325813]
[1756762021401,6.43977152,108360.0,108350.0,0.00325813]
[1756762022072,6.43977089,108360.0,108350.0,0.00325813]
[1756762022289,6.5107306,108360.0,108350.0,0.00325813]
[1756762022504,6.60264659,108360.0,108350.0,0.00325813]
[1756762023226,5.91610319,108360.0,108350.0,0.00325813]
[1756762023446,6.60264659,108360.0,108350.0,0.00325813]
[1756762024536,6.35853235,108360.0,108350.0,0.00325813]
[1756762024754,6.45118631,108360.0,108350.0,0.00325813]
[1756762025211,6.48414174,108360.0,108350.0,0.00325813]
[1756762025433,6.47772855,108360.0,108350.0,0.00325813]
[1756762027060,6.31816855,108360.0,108350.0,0.00325813]
[1756762027283,5.77408086,108360.0,108350.0,0.00325813]
[1756762027524,6.46062426,108360.0,108350.0,0.00325813]
[1756762029562,6.55254025,108360.0,108350.0,0.00325813]
[1756762030187,6.39298025,108360.0,108350.0,0.00325813]
[1756762030370,6.55250025,108360.0,108350.0,0.00325813]
[1756762031241,6.53279392,108360.0,108350.0,0.00325813]
[1756762035029,6.53761277,108360.0,108350.0,0.00325813]
[1756762036645,6.53761277,108360.0,108350.0,0.00225813]
[1756762037081,6.53961277,108360.0,108350.0,0.00325813]
[1756762037300,1.56807519,108360.0,108350.0,0.00855813]
[1756762037527,1.57023519,108360.0,108350.0,0.00855813]
[1756762037749,1.4761592,108360.0,108350.0,0.00655813]
[1756762038194,1.4791592,108360.0,108350.0,0.00755813]
[1756762039356,1.4813192,108360.0,108350.0,0.00755813]
[1756762039582,0.6330958,108360.0,108350.0,0.00755813]
[1756762039812,1.4791592,108360.0,108350.0,0.00755813]
[1756762040027,1.47434035,108360.0,108350.0,0.00755813]
[1756762041990,1.47434035,108360.0,108350.0,0.10755813]
[1756762042408,1.31482035,108360.0,108350.0,0.10755813]
[1756762042619,1.47430035,108360.0,108350.0,0.10755813]
[1756762043194,1.47646035,108360.0,108350.0,0.10755813]
[1756762043410,1.47951035,108360.0,108350.0,0.10225813]
[1756762043618,1.47646035,108360.0,108350.0,0.10755813]
[1756762044049,1.31698035,108360.0,108350.0,0.10755813]
[1756762044264,1.47430035,108360.0,108350.0,0.10755813]
[1756762044695,1.40334035,108360.0,108350.0,0.10755813]
[1756762044917,0.90058865,108360.0,108350.0,0.10755813]
[1756762045120,1.06006865,108360.0,108350.0,0.10755813]
[1756762045537,1.40334035,108360.0,108350.0,0.10755813]
[1756762046832,1.40334035,108360.0,108350.0,0.29214511]
[1756762047278,1.40550035,108360.0,108350.0,0.10755813]
[1756762047704,1.40334035,108360.0,108350.0,0.10755813]
[1756762048997,1.40550035,108360.0,108350.0,0.10436813]
[1756762049210,1.40855035,108360.0,108350.0,0.10225813]
[1756762050936,0.55731695,108360.0,108350.0,0.10436813]
[1756762051164,1.06002865,108360.0,108350.0,0.10755813]
[1756762051384,1.40330035,108360.0,108350.0,0.10755813]
[1756762052649,1.40546035,108360.0,108350.0,0.10755813]
[1756762054834,1.40330035,108360.0,108350.0,0.10755813]
[1756762055043,1.44232373,108360.0,108350.0,0.10225813]
[1756762055256,6.41176131,108360.0,108350.0,0.10225813]
[1756762055465,6.43151671,108360.0,108350.0,0.10225813]
[1756762055686,6.44866552,108360.0,108350.0,0.10225813]
[1756762061540,6.48185998,108360.0,108350.0,0.10225813]
[1756762062175,6.48828765,108360.0,108350.0,0.10225813]
[1756762062392,6.46471117,108360.0,108350.0,0.10225813]
[1756762062583,6.85472269,108360.0,108350.0,1e-08]
[1756762062829,6.85472269,108360.0,108330.0,0.10026633]
[1756762062830,0.52460402,108340.0,108330.0,0.10026633]
[1756762063046,0.52460402,108340.0,108330.0,1e-08]
[1756762063047,6.4133283,108340.0,108330.0,1e-08]
[1756762063260,6.45492797,108340.0,108330.0,1e-08]
[1756762063650,6.45862897,108340.0,108330.0,1e-08]
[1756762064020,6.45862897,108340.0,108330.0,0.00100001]
[1756762064021,6.45962897,108340.0,108330.0,0.00100001]
[1756762064222,6.67036347,108340.0,108330.0,1e-08]
[1756762064437,6.67941358,108340.0,108330.0,1e-08]
[1756762064633,6.4710763,108340.0,108330.0,1e-08]
[1756762064901,6.45013748,108340.0,108330.0,1e-08]
[1756762065330,6.44158086,108340.0,108330.0,1e-08]
[1756762065499,6.44258086,108340.0,108330.0,1e-08]
[1756762065963,6.46704644,108340.0,108330.0,1e-08]
[1756762066163,6.46062897,108340.0,108330.0,1e-08]
[1756762067178,6.43620339,108340.0,108330.0,1e-08]
[1756762067414,6.43319339,108340.0,108330.0,1e-08]
[1756762067634,6.43620339,108340.0,108330.0,1e-08]
[1756762067875,6.27676339,108340.0,108330.0,1e-08]
[1756762068081,6.43620339,108340.0,108330.0,1e-08]
[1756762068700,6.47733609,108340.0,108330.0,1e-08]
[1756762069518,6.3982326,108340.0,108330.0,0.00534001]
[1756762069775,6.35934311,108340.0,108330.0,0.00534001]
[1756762070000,6.36134311,108340.0,108330.0,0.00215001]
[1756762070225,6.37842103,108340.0,108330.0,0.00534001]
[1756762071190,6.21902103,108340.0,108330.0,0.00534001]
[1756762071394,6.46837702,108340.0,108330.0,0.00534001]
[1756762071639,0.73083772,108340.0,108330.0,0.00534001]
[1756762071812,1.07410942,108340.0,108330.0,0.00534001]
[1756762072893,0.19030502,108340.0,108330.0,0.00534001]
[1756762073105,0.69297672,108340.0,108330.0,0.18996107]
[1756762073301,1.03297672,108340.0,108330.0,0.18996107]
[1756762073846,1.03297672,108340.0,108330.0,0.00534001]
[1756762074690,1.03297672,108340.0,108330.0,0.18996107]
[1756762075923,1.03297672,108340.0,108330.0,0.00534001]
[1756762077747,1.03297672,108340.0,108330.0,0.18996107]
[1756762078387,1.03297672,108340.0,108330.0,0.00534001]
[1756762078572,1.03297672,108340.0,108330.0,1e-08]
[1756762078780,1.03497672,108340.0,108330.0,0.00534001]
[1756762079201,1.03297672,108340.0,108330.0,0.00534001]
[1756762079847,1.38125842,108340.0,108330.0,1e-08]
[1756762080124,1.47317441,108340.0,108330.0,1e-08]
[1756762080935,1.58955598,108340.0,108330.0,1e-08]
[1756762082128,6.43960198,108340.0,108330.0,1e-08]
[1756762082368,6.47636722,108340.0,108330.0,1e-08]
[1756762083318,6.62636722,108340.0,108330.0,1e-08]
[1756762085320,6.66594081,108340.0,108330.0,1e-08]
[1756762085535,6.68687963,108340.0,108330.0,1e-08]
[1756762087925,6.46171124,108340.0,108330.0,1e-08]
[1756762088139,6.99328796,108340.0,108330.0,1e-08]
[1756762089210,6.65001626,108340.0,108330.0,1e-08]
[1756762090494,6.66021428,108340.0,108330.0,1e-08]
[1756762092424,6.64313082,108340.0,108330.0,1e-08]
[1756762092633,6.66021578,108340.0,108330.0,1e-08]
[1756762092886,6.50266463,108340.0,108330.0,1e-08]
[1756762093102,5.97544123,108340.0,108330.0,1e-08]
[1756762093318,6.36412175,108340.0,108330.0,0.00504001]
[1756762093525,6.01771489,108340.0,108330.0,0.00504001]
[1756762093735,6.35771489,108340.0,108330.0,0.00504001]
[1756762093948,6.35974489,108340.0,108330.0,0.00200001]
[1756762094201,6.19839489,108340.0,108330.0,0.00504001]
[1756762094412,6.44963088,108340.0,108330.0,0.00504001]
[1756762094850,6.47937646,108340.0,108330.0,1e-08]
[1756762097616,6.49432372,108340.0,108330.0,1e-08]
[1756762097825,6.68988789,108340.0,108330.0,1e-08]
[1756762100067,7.08707795,108340.0,108330.0,1e-08]
[1756762100268,6.86902074,108340.0,108330.0,1e-08]
[1756762100478,6.71780182,108340.0,108330.0,1e-08]
[1756762101961,7.06107352,108340.0,108330.0,1e-08]
[1756762102375,0.52462106,108330.0,108320.0,1e-08]
[1756762102587,6.79178039,108330.0,108320.0,1e-08]
[1756762102788,6.82055348,108330.0,108320.0,1e-08]
[1756762102994,6.84517883,108330.0,108320.0,1e-08]
[1756762103434,6.84192883,108330.0,108320.0,0.00200001]
[1756762103649,6.51803546,108330.0,108320.0,0.00200001]
[1756762103863,6.51803546,108330.0,108320.0,1e-08]
[1756762104070,6.42611947,108330.0,108320.0,0.00200001]
[1756762104275,6.4346712,108330.0,108320.0,0.00200001]
[1756762104492,6.42811947,108330.0,108320.0,0.00300001]
[1756762104693,6.40349412,108330.0,108320.0,0.00300001]
[1756762104902,6.40349412,108330.0,108320.0,0.00604001]
[1756762105104,6.52003546,108330.0,108320.0,0.00604001]
[1756762105309,6.36724138,108330.0,108320.0,0.00604001]
[1756762105511,6.52656138,108330.0,108320.0,0.00604001]
[1756762105756,6.21767854,108330.0,108320.0,0.00604001]
[1756762105968,6.37058742,108330.0,108320.0,0.00604001]
[1756762106196,6.21126742,108330.0,108320.0,0.00604001]
[1756762106416,1.08862543,108330.0,108320.0,0.00604001]
[1756762106639,1.40894476,108330.0,108320.0,0.00604001]
[1756762107727,1.24962476,108330.0,108320.0,0.00604001]
[1756762107944,0.021374,108330.0,108320.0,0.19067811]
[1756762108165,0.5239257,108330.0,108320.0,0.19067811]
[1756762108402,0.8639257,108330.0,108320.0,0.19067811]
[1756762108626,0.8639257,108330.0,108320.0,0.00604001]
[1756762108627,1.39181846,108330.0,108320.0,0.00604001]
[1756762109737,1.39181846,108330.0,108320.0,0.19067811]
[1756762110222,1.39181846,108330.0,108320.0,0.00604001]
[1756762113657,1.23253846,108330.0,108320.0,0.00604001]
[1756762113861,1.39181846,108330.0,108320.0,0.00604001]
[1756762114001,1.23253846,108330.0,108320.0,0.00604001]
[1756762114212,1.39181846,108330.0,108320.0,0.00604001]
[1756762115615,1.23253846,108330.0,108320.0,0.00604001]
[1756762115847,1.39181846,108330.0,108320.0,0.00604001]
[1756762116056,1.4754819,108330.0,108320.0,0.00100001]
[1756762116277,1.57033789,108330.0,108320.0,0.00100001]
[1756762116457,6.42038389,108330.0,108320.0,0.00100001]
[1756762117675,6.44484947,108330.0,108320.0,0.00100001]
[1756762120961,6.44190947,108330.0,108320.0,0.00100001]
[1756762122110,6.28262947,108330.0,108320.0,0.00313001]
[1756762122326,6.17450045,108330.0,108320.0,0.00620001]
[1756762122539,1.39177846,108330.0,108320.0,0.00620001]
[1756762122943,1.23253846,108330.0,108320.0,0.00620001]
[1756762123152,1.39177846,108330.0,108320.0,0.00620001]
[1756762123589,1.39659731,108330.0,108320.0,0.00620001]
[1756762123809,1.48771207,108330.0,108320.0,0.00620001]
[1756762125440,1.58169806,108330.0,108320.0,0.00100001]
[1756762125675,1.58169806,108330.0,108320.0,0.00313001]
[1756762126288,1.42245806,108330.0,108320.0,0.00313001]
[1756762126469,1.58169806,108330.0,108320.0,0.00100001]
[1756762127613,1.58463806,108330.0,108320.0,0.00100001]
[1756762127794,1.58169806,108330.0,108320.0,0.00100001]
[1756762127970,1.42245806,108330.0,108320.0,0.00100001]
[1756762128174,1.58169806,108330.0,108320.0,0.00100001]
[1756762128578,1.58169806,108330.0,108320.0,0.00313001]
[1756762129879,1.58165806,108330.0,108320.0,0.00313001]
[1756762130676,0.8019299,108330.0,108320.0,0.00620001]
[1756762130836,1.4905433,108330.0,108320.0,0.00620001]
[1756762131214,1.4905433,108330.0,108320.0,0.00100001]
[1756762131412,1.4884733,108330.0,108320.0,0.00620001]
[1756762131829,1.3292733,108330.0,108320.0,0.00620001]
[1756762132227,1.4905433,108330.0,108320.0,0.00620001]
[1756762133174,1.3313433,108330.0,108320.0,0.00620001]
[1756762133477,1.4905433,108330.0,108320.0,0.00620001]
[1756762133812,6.45991087,108330.0,108320.0,0.00100001]
[1756762134051,6.49681343,108330.0,108320.0,0.00100001]
[1756762134628,6.84008513,108330.0,108320.0,0.00100001]
[1756762134831,6.49681343,108330.0,108320.0,0.00100001]
[1756762136135,6.86475912,108330.0,108320.0,0.00100001]
[1756762137392,6.84008513,108330.0,108320.0,0.00100001]
[1756762137808,0.5246381,108320.0,108310.0,0.00027453]
[1756762138014,6.46562762,108320.0,108310.0,0.00027453]
[1756762138232,6.49531161,108320.0,108310.0,0.00027453]
[1756762138379,6.47063762,108320.0,108310.0,0.00027453]
[1756762138977,6.49009795,108320.0,108310.0,0.00027453]
[1756762139402,6.49209795,108320.0,108310.0,0.00127453]
[1756762140001,5.82454135,108320.0,108310.0,0.00340453]
[1756762140240,5.97227689,108320.0,108310.0,0.00647453]
[1756762140482,5.97020689,108320.0,108310.0,0.00647453]
[1756762140722,5.97227689,108320.0,108310.0,0.00647453]
[1756762140937,5.97227689,108320.0,108310.0,0.00340453]
[1756762141393,5.97227689,108320.0,108310.0,0.00127453]
[1756762142057,6.01401998,108320.0,108310.0,0.00340453]
[1756762142531,6.01401998,108320.0,108310.0,0.00127453]
[1756762142730,6.03848556,108320.0,108310.0,0.00127453]
[1756762143375,6.03848556,108320.0,108310.0,0.00340453]
[1756762143801,6.05564216,108320.0,108310.0,0.00127453]
[1756762144520,6.39891386,108320.0,108310.0,0.00127453]
[1756762145082,6.23971386,108320.0,108310.0,0.00127453]
[1756762145278,5.55317046,108320.0,108310.0,0.00632453]
[1756762145527,6.05560216,108320.0,108310.0,0.00323453]
[1756762145726,5.89644216,108320.0,108310.0,0.00323453]
[1756762146058,1.06994799,108320.0,108310.0,0.00632453]
[1756762147731,0.91078799,108320.0,108310.0,0.00323453]
[1756762147906,5.93746601,108320.0,108310.0,0.00127453]
[1756762148769,5.92207399,108320.0,108310.0,0.00127453]
[1756762149749,5.92207399,108320.0,108310.0,0.00323453]
[1756762150156,5.94182691,108320.0,108310.0,0.00323453]
[1756762150358,5.94182691,108320.0,108310.0,0.00127453]
[1756762150359,5.94495691,108320.0,108310.0,0.00127453]
[1756762150935,6.3801446,108320.0,108310.0,0.00127453]
[1756762151145,6.12565889,108320.0,108310.0,0.00127453]
[1756762151389,6.12878889,108320.0,108310.0,0.00127453]
[1756762151598,5.96962889,108320.0,108310.0,0.00127453]
[1756762151805,6.12565889,108320.0,108310.0,0.00323453]
[1756762152015,6.12565889,108320.0,108310.0,0.00632453]
[1756762152221,6.12565889,108320.0,108310.0,0.00127453]
[1756762153079,6.0839158,108320.0,108310.0,0.00127453]
[1756762153694,5.9247558,108320.0,108310.0,0.00127453]
[1756762153941,6.1010696,108320.0,108310.0,0.00323453]
[1756762154144,6.1010696,108320.0,108310.0,0.00127453]
[1756762154915,5.9419096,108320.0,108310.0,0.00127453]
[1756762155184,6.1010296,108320.0,108310.0,0.00127453]
[1756762155391,6.00911361,108320.0,108310.0,0.00127453]
[1756762156768,6.01224361,108320.0,108310.0,0.00127453]
[1756762156969,6.05390356,108320.0,108310.0,0.00127453]
[1756762157517,5.89478356,108320.0,108310.0,0.00127453]
[1756762157731,6.05390356,108320.0,108310.0,0.00127453]
[1756762157931,5.98669955,108320.0,108310.0,0.00127453]
[1756762158174,6.14581955,108320.0,108310.0,0.00127453]
[1756762159140,6.48909125,108320.0,108310.0,0.00127453]
[1756762159752,6.51355683,108320.0,108310.0,0.00127453]
[1756762160959,6.51357688,108320.0,108310.0,0.00127453]
[1756762164562,6.53827378,108320.0,108310.0,0.00127453]
[1756762164772,6.55330264,108320.0,108310.0,0.00127453]
[1756762167267,6.38897264,108320.0,108310.0,0.00323453]
[1756762167478,1.07927337,108320.0,108310.0,0.00632453]
[1756762167661,0.98735738,108320.0,108310.0,0.00632453]
[1756762167903,1.11529954,108320.0,108310.0,0.00632453]
[1756762168136,1.10671162,108320.0,108310.0,0.00632453]
[1756762168542,0.94763162,108320.0,108310.0,0.00632453]
[1756762168749,1.10671162,108320.0,108310.0,0.00632453]
[1756762171245,1.08953777,108320.0,108310.0,0.00632453]
[1756762171444,1.10672214,108320.0,108310.0,0.00632453]
[1756762173680,1.10668214,108320.0,108310.0,0.00632453]
[1756762173858,0.94764214,108320.0,108310.0,0.00632453]
[1756762174060,1.10876214,108320.0,108310.0,0.00632453]
[1756762174478,0.94764214,108320.0,108310.0,0.00632453]
[1756762174641,1.10668214,108320.0,108310.0,0.00632453]
[1756762175307,1.10877214,108320.0,108310.0,0.00632453]
[1756762176376,1.10668214,108320.0,108310.0,0.00632453]
[1756762177851,1.10877214,108320.0,108310.0,0.00632453]
[1756762179662,0.94973214,108320.0,108310.0,0.00632453]
[1756762179866,1.10873214,108320.0,108310.0,0.00632453]
[1756762180855,1.20064813,108320.0,108310.0,0.00632453]
[1756762180990,1.20064813,108320.0,108310.0,0.00323453]
[1756762181730,1.18346376,108320.0,108310.0,0.00127453]
[1756762181971,1.63877558,108320.0,108310.0,0.00127453]
[1756762182184,1.64736576,108320.0,108310.0,0.00127453]
[1756762182412,6.57902179,108320.0,108310.0,0.00127453]
[1756762183859,6.58384064,108320.0,108310.0,0.00127453]
[1756762184077,6.55783621,108320.0,108310.0,0.00127453]
[1756762184949,6.39883621,108320.0,108310.0,0.00127453]
[1756762185176,6.55779621,108320.0,108310.0,0.00127453]
[1756762186931,6.39883621,108320.0,108310.0,0.00127453]
[1756762187150,6.55779621,108320.0,108310.0,0.00127453]
[1756762190305,6.21342454,108320.0,108310.0,0.00127453]
[1756762192206,6.20698142,108320.0,108310.0,0.00127453]
[1756762192509,6.55341986,108320.0,108310.0,0.00127453]
[1756762197232,6.55341986,108320.0,108310.0,0.00027453]
[1756762197474,6.55141986,108320.0,108310.0,0.00027453]
[1756762197692,6.55341986,108320.0,108310.0,0.00027453]
[1756762197880,6.55241986,108320.0,108310.0,0.00027453]
[1756762198008,6.55341986,108320.0,108310.0,0.00027453]
[1756762199456,6.55341986,108320.0,108310.0,1e-08]
[1756762199737,0.20912072,108310.0,108300.0,0.0183731]
[1756762199954,0.55091925,108320.0,108310.0,0.00204]
[1756762200162,0.69142625,108320.0,108310.0,0.00204]
[1756762200343,0.73899811,108320.0,108310.0,0.00528]
[1756762200830,0.73799811,108320.0,108310.0,0.00528]
[1756762201253,0.73799811,108320.0,108310.0,0.00204]
[1756762201254,6.41770632,108320.0,108310.0,0.00204]
[1756762201462,0.52465515,108310.0,108300.0,0.0216131]
[1756762201681,5.37470115,108310.0,108300.0,0.0216131]
[1756762201899,1.02680685,108310.0,108300.0,0.0183731]
[1756762202112,0.89568785,108310.0,108300.0,0.0204131]
[1756762202322,1.05456785,108310.0,108300.0,0.0236531]
[1756762203787,1.05752785,108310.0,108300.0,0.0236531]
[1756762204213,0.89868785,108310.0,108300.0,0.0236531]
[1756762204440,1.05752785,108310.0,108300.0,0.0236531]
[1756762204656,1.13083151,108310.0,108300.0,0.0236531]
[1756762204870,1.05752785,108310.0,108300.0,0.0236531]
[1756762205279,1.40274955,108310.0,108300.0,0.0236531]
[1756762205497,1.40079955,108310.0,108300.0,0.0236531]
[1756762205938,6.25279555,108310.0,108300.0,0.0183731]
[1756762206156,6.34471154,108310.0,108300.0,0.0183731]
[1756762206578,6.36454396,108310.0,108300.0,0.0204131]
[1756762206787,6.38176138,108310.0,108300.0,0.0204131]
[1756762207460,6.47367737,108310.0,108300.0,0.0183731]
[1756762207671,6.47661737,108310.0,108300.0,0.0183731]
[1756762208360,6.485224,108310.0,108300.0,0.0183731]
[1756762211478,6.53934562,108310.0,108300.0,0.0183731]
[1756762211779,6.38050562,108310.0,108300.0,0.0183731]
[1756762212186,6.5393165,108310.0,108300.0,0.0183731]
[1756762213534,6.17116445,108310.0,108300.0,0.0183731]
[1756762213777,6.39973803,108310.0,108300.0,0.0183731]
[1756762213986,6.24093803,108310.0,108300.0,0.0183731]
[1756762214201,6.39973803,108310.0,108300.0,0.0183731]
[1756762214615,6.24093803,108310.0,108300.0,0.0183731]
[1756762214835,6.49165402,108310.0,108300.0,0.0183731]
[1756762215935,6.48871402,108310.0,108300.0,0.0204131]
[1756762216355,6.49165402,108310.0,108300.0,0.0183731]
[1756762216535,6.48871402,108310.0,108300.0,0.0183731]
[1756762216940,6.49165402,108310.0,108300.0,0.0183731]
[1756762218023,6.5146196,108310.0,108300.0,0.0183731]
[1756762218885,6.51459766,108310.0,108300.0,0.0183731]
[1756762219078,6.51159766,108310.0,108300.0,0.0183731]
[1756762219463,6.51259766,108310.0,108300.0,0.0183731]
[1756762219936,6.51459766,108310.0,108300.0,0.0183731]
[1756762220350,6.51259766,108310.0,108300.0,0.0183731]
[1756762221178,6.51459766,108310.0,108300.0,0.0183731]
[1756762222253,6.49737413,108310.0,108300.0,0.0183731]
[1756762222462,6.51454163,108310.0,108300.0,0.0183731]
[1756762222905,6.51454454,108310.0,108300.0,0.0183731]
[1756762223112,6.50809841,108310.0,108300.0,0.0183731]
[1756762223332,6.51454278,108310.0,108300.0,0.0183731]
[1756762223588,6.53923968,108310.0,108300.0,0.0183731]
[1756762224666,6.88251138,108310.0,108300.0,0.0183731]
[1756762224894,5.69389628,108310.0,108300.0,0.0183731]
[1756762225109,6.57193246,108310.0,108300.0,0.0183731]
[1756762225760,6.41317246,108310.0,108300.0,0.0183731]
[1756762225963,6.57193246,108310.0,108300.0,0.0183731]
[1756762227156,6.41317246,108310.0,108300.0,0.0183731]
[1756762227620,6.57193246,108310.0,108300.0,0.0183731]
[1756762228458,6.75644416,108310.0,108300.0,0.0183731]
[1756762228683,6.91516416,108310.0,108300.0,0.0183731]
[1756762229158,6.91516446,108310.0,108300.0,0.0183731]
[1756762230509,6.93610328,108310.0,108300.0,0.0183731]
[1756762230702,0.1846722,108300.0,108290.0,0.00038272]
[1756762230927,6.88958249,108300.0,108290.0,0.00038272]
[1756762231150,6.92272611,108300.0,108290.0,1e-08]
[1756762231826,7.08301711,108300.0,108290.0,1e-08]
[1756762232042,7.10395593,108300.0,108290.0,1e-08]
[1756762232286,7.10495593,108300.0,108290.0,1e-08]
[1756762232563,7.10595593,108300.0,108290.0,1e-08]
[1756762232804,7.1059662,108300.0,108290.0,1e-08]
[1756762233252,7.10596745,108300.0,108290.0,1e-08]
[1756762233473,1.23217148,108290.0,108280.0,1e-08]
[1756762233697,6.47976933,108290.0,108280.0,1e-08]
[1756762233911,6.50468491,108290.0,108280.0,1e-08]
[1756762234363,6.50856991,108290.0,108280.0,1e-08]
[1756762234601,5.82202651,108290.0,108280.0,1e-08]
[1756762234818,6.50956771,108290.0,108280.0,1e-08]
[1756762235898,6.17156771,108290.0,108280.0,1e-08]
[1756762236111,6.1715646,108290.0,108280.0,1e-08]
[1756762237701,6.0128446,108290.0,108280.0,1e-08]
[1756762237907,6.5115646,108290.0,108280.0,1e-08]
[1756762238544,5.8250212,108290.0,108280.0,1e-08]
[1756762238746,6.5115646,108290.0,108280.0,1e-08]
[1756762240414,6.5086246,108290.0,108280.0,1e-08]
[1756762240654,6.5117346,108290.0,108280.0,1e-08]
[1756762241048,6.5537055,108290.0,108280.0,1e-08]
[1756762242818,6.53867067,108290.0,108280.0,1e-08]
[1756762243034,6.5536857,108290.0,108280.0,1e-08]
[1756762243281,6.3949657,108290.0,108280.0,1e-08]
[1756762243498,6.54505713,108290.0,108280.0,1e-08]
[1756762243683,6.55364151,108290.0,108280.0,1e-08]
[1756762243944,6.55846036,108290.0,108280.0,1e-08]
[1756762245531,6.58315726,108290.0,108280.0,1e-08]
[1756762245993,6.59119314,108290.0,108280.0,1e-08]
[1756762246223,6.58919314,108290.0,108280.0,1e-08]
[1756762246742,0.87126677,108270.0,108260.0,0.00353912]
[1756762246960,0.63205689,108270.0,108260.0,0.00353912]
[1756762247185,1.65860029,108270.0,108260.0,0.00557912]
[1756762247407,1.68637529,108270.0,108260.0,0.00557912]
[1756762248043,1.68935529,108270.0,108260.0,0.00605215]
[1756762248265,1.69135529,108270.0,108260.0,0.00605215]
[1756762248491,1.69135529,108270.0,108260.0,1e-08]
[1756762248492,6.92578568,108270.0,108260.0,1e-08]
[1756762248711,6.95055021,108270.0,108260.0,1e-08]
[1756762248935,0.18479164,108230.0,108220.0,0.00031552]
[1756762249154,0.18480872,108220.0,108200.0,0.00466569]
[1756762249356,6.26835538,108220.0,108200.0,0.00466569]
[1756762249580,6.2986724,108220.0,108200.0,0.00466569]
[1756762249785,6.04731669,108220.0,108200.0,0.00466569]
[1756762249996,6.04420669,108220.0,108200.0,0.00466569]
[1756762250209,6.04420669,108220.0,108200.0,0.00142569]
[1756762250210,5.97861885,108220.0,108200.0,0.00142569]
[1756762250424,6.38263342,108220.0,108200.0,0.00466569]
[1756762250630,6.38263342,108220.0,108210.0,0.00439874]
[1756762250874,6.2144076,108220.0,108210.0,0.00439874]
[1756762251085,6.3740876,108220.0,108210.0,0.00763874]
[1756762251330,5.60103682,108220.0,108210.0,0.00439874]
[1756762251596,6.28858022,108220.0,108210.0,0.00763874]
[1756762251790,6.44726022,108220.0,108210.0,0.00763874]
[1756762252204,6.28858022,108220.0,108210.0,0.00763874]
[1756762252416,6.35336423,108220.0,108210.0,0.00763874]
[1756762252624,6.19468423,108220.0,108210.0,0.00763874]
[1756762252848,5.50814083,108220.0,108210.0,0.00763874]
[1756762253062,6.35336423,108220.0,108210.0,0.00763874]
[1756762253267,6.37806093,108220.0,108210.0,0.00763874]
[1756762253481,6.48710397,108220.0,108210.0,0.00763874]
[1756762253690,6.32842397,108220.0,108210.0,0.00763874]
[1756762253907,0.76995429,108220.0,108210.0,0.00763874]
[1756762254146,0.75282724,108220.0,108210.0,0.00763874]
[1756762254346,0.59414724,108220.0,108210.0,0.00763874]
[1756762254548,0.75282724,108220.0,108210.0,0.19246454]
[1756762254722,0.71095819,108220.0,108210.0,0.19246454]
[1756762254963,0.55227819,108220.0,108210.0,0.19246454]
[1756762255174,0.71095819,108220.0,108210.0,0.19246454]
[1756762255394,0.01280477,108220.0,108210.0,0.19246454]
[1756762255573,0.00247277,108220.0,108210.0,0.09955473]
[1756762255779,0.19016912,108220.0,108210.0,0.19246454]
[1756762256010,0.37374149,108220.0,108210.0,0.19246454]
[1756762256230,0.37374149,108220.0,108210.0,0.00763874]
[1756762256626,0.71701319,108220.0,108210.0,0.00763874]
[1756762257059,0.55833319,108220.0,108210.0,0.19246454]
[1756762257265,0.37374149,108220.0,108210.0,0.19246454]
[1756762257680,0.38468915,108220.0,108210.0,0.19246454]
[1756762257886,0.21506149,108220.0,108210.0,0.19246454]
[1756762258140,0.37374149,108220.0,108210.0,0.19246454]
[1756762258549,0.37374149,108220.0,108210.0,0.00763874]
[1756762258731,0.71701319,108220.0,108210.0,0.00763874]
[1756762259166,0.03025277,108220.0,108210.0,0.19246454]
[1756762259362,0.00247277,108220.0,108210.0,0.19246454]
[1756762259790,0.00247277,108220.0,108210.0,0.28438053]
[1756762260112,0.00247277,108220.0,108210.0,0.80727105]
[1756762260507,0.00247277,108220.0,108210.0,1.25727105]
[1756762260927,0.34474447,108220.0,108210.0,0.00763874]
[1756762261133,0.52955319,108220.0,108210.0,0.00763874]
[1756762261340,0.53055319,108220.0,108210.0,0.00963874]
[1756762261783,0.55733419,108220.0,108210.0,0.00863874]
[1756762261993,0.55933419,108220.0,108210.0,0.01063874]
[1756762262201,0.21506249,108220.0,108210.0,0.19446454]
[1756762262404,0.18893377,108220.0,108210.0,0.19446454]
[1756762262608,0.37474249,108220.0,108210.0,0.19546454]
[1756762262808,0.21406249,108220.0,108210.0,0.19346454]
[1756762263038,0.55733419,108220.0,108210.0,0.00863874]
[1756762263251,0.55733419,108220.0,108210.0,0.00335874]
[1756762263476,0.55931419,108220.0,108210.0,0.00863874]
[1756762263670,0.55733419,108220.0,108210.0,0.00863874]
[1756762264096,0.55733419,108220.0,108210.0,0.01163874]
[1756762264097,0.57338713,108220.0,108210.0,0.01163874]
[1756762264325,0.57438713,108220.0,108210.0,0.01163874]
[1756762264537,0.57438713,108220.0,108210.0,0.19646454]
[1756762264976,0.21506249,108220.0,108210.0,0.01163874]
[1756762265571,0.57438713,108220.0,108210.0,0.01163874]
[1756762266872,0.57639713,108220.0,108210.0,0.01163874]
[1756762267081,0.57438713,108220.0,108210.0,0.01163874]
[1756762267311,0.57639713,108220.0,108210.0,0.01163874]
[1756762267752,0.57438713,108220.0,108210.0,0.01163874]
[1756762268212,0.57438713,108220.0,108210.0,0.00837874]